[Event "Titled Tuesday Blitz February 14 Early 2023"]
[White "Afanasieva, Alexandra"]
[Black "Bongo Akanga Ndjila, Barthelemy"]
[WhiteFideId "34126926"]
[BlackFideId "10609431"]
[WhiteElo "1857"]
[BlackElo "1824"]
[Result "1-0"]
[Round "09"]
[TimeControl "180+2"]
[Date "2023.02.14"]
[WhiteClock "0:00:09"]
[BlackClock "0:00:43"]

1. e4 {[%clk 0:03:00]}  e5 {[%clk 0:02:53]} 2. Nf3 {[%clk 0:03:00]}  Nc6 {[%clk 0:02:49]} 3. Bb5 {[%clk 0:03:00]}  a6 {[%clk 0:02:48]} 4. Ba4 {[%clk 0:03:01]}  Nf6 {[%clk 0:02:47]} 5. O-O {[%clk 0:03:00]}  b5 {[%clk 0:02:42]} 6. Bb3 {[%clk 0:03:00]}  Be7 {[%clk 0:02:42]} 7. Re1 {[%clk 0:02:59]}  O-O {[%clk 0:02:42]} 8. a3 {[%clk 0:02:58]}  d6 {[%clk 0:02:42]} 9. h3 {[%clk 0:02:58]}  Nb8 {[%clk 0:02:37]} 10. c3 {[%clk 0:02:56]}  Bb7 {[%clk 0:02:37]} 11. Bc2 {[%clk 0:02:53]}  Nbd7 {[%clk 0:02:33]} 12. d4 {[%clk 0:02:53]}  Nb6 {[%clk 0:02:22]} 13. b3 {[%clk 0:02:47]}  exd4 {[%clk 0:02:16]} 14. cxd4 {[%clk 0:02:48]}  Re8 {[%clk 0:02:16]} 15. Bb2 {[%clk 0:02:48]}  Bf8 {[%clk 0:02:15]} 16. Nc3 {[%clk 0:02:40]}  c5 {[%clk 0:02:11]} 17. d5 {[%clk 0:02:37]}  b4 {[%clk 0:02:06]} 18. axb4 {[%clk 0:02:17]}  cxb4 {[%clk 0:02:06]} 19. Nb1 {[%clk 0:02:18]}  a5 {[%clk 0:02:01]} 20. Nbd2 {[%clk 0:02:16]}  g6 {[%clk 0:01:56]} 21. Nc4 {[%clk 0:01:57]}  Nbd7 {[%clk 0:01:51]} 22. Qd4 {[%clk 0:01:41]}  Bg7 {[%clk 0:01:46]} 23. Qd2 {[%clk 0:00:45]}  Nc5 {[%clk 0:01:41]} 24. Qf4 {[%clk 0:00:34]}  Nh5 {[%clk 0:01:39]} 25. Qd2 {[%clk 0:00:24]}  Bxb2 {[%clk 0:01:38]} 26. Nxb2 {[%clk 0:00:25]}  Qf6 {[%clk 0:01:31]} 27. Nc4 {[%clk 0:00:22]}  Nf4 {[%clk 0:01:30]} 28. Nxd6 {[%clk 0:00:15]}  Qxd6 {[%clk 0:01:28]} 29. e5 {[%clk 0:00:15]}  Nxh3+ {[%clk 0:01:23]} 30. gxh3 {[%clk 0:00:16]}  Qxd5 {[%clk 0:01:23]} 31. Qxd5 {[%clk 0:00:16]}  Bxd5 {[%clk 0:01:23]} 32. Nd4 {[%clk 0:00:15]}  Ne6 {[%clk 0:01:18]} 33. Nb5 {[%clk 0:00:14]}  Ra6 {[%clk 0:01:13]} 34. Bd3 {[%clk 0:00:13]}  Rc6 {[%clk 0:01:12]} 35. Nd6 {[%clk 0:00:12]}  Ra8 {[%clk 0:01:08]} 36. Bf1 {[%clk 0:00:11]}  Bxb3 {[%clk 0:01:08]} 37. Reb1 {[%clk 0:00:10]}  Bd5 {[%clk 0:01:07]} 38. Rxb4 {[%clk 0:00:09]}  axb4 {[%clk 0:01:01]} 39. Rxa8+ {[%clk 0:00:09]}  Kg7 {[%clk 0:01:02]} 40. Ne8+ {[%clk 0:00:08]}  Kh6 {[%clk 0:01:00]} 41. Nf6 {[%clk 0:00:09]}  Bf3 {[%clk 0:00:57]} 42. Rh8 {[%clk 0:00:09]}  Kg5 {[%clk 0:00:46]} 43. Rxh7 {[%clk 0:00:07]}  Kf5 {[%clk 0:00:45]} 44. Rxf7 {[%clk 0:00:03]}  Kxe5 {[%clk 0:00:45]} 45. Nd7+ {[%clk 0:00:04]}  Kd6 {[%clk 0:00:44]} 46. Rxf3 {[%clk 0:00:03]}  Kxd7 {[%clk 0:00:44]} 47. Bb5 {[%clk 0:00:03]}  Nd4 {[%clk 0:00:43]} 48. Rd3 {[%clk 0:00:01]}  Kc7 {[%clk 0:00:41]} 49. Bxc6 {[%clk 0:00:01]}  Nxc6 {[%clk 0:00:41]} 50. Kg2 {[%clk 0:00:02]}  Kb6 {[%clk 0:00:40]} 51. Kf3 {[%clk 0:00:02]}  Kb5 {[%clk 0:00:41]} 52. Ke3 {[%clk 0:00:02]}  Kc4 {[%clk 0:00:41]} 53. Rd1 {[%clk 0:00:02]}  b3 {[%clk 0:00:42]} 54. Rc1+ {[%clk 0:00:03]}  Kb4 {[%clk 0:00:42]} 55. Rxc6 {[%clk 0:00:03]}  b2 {[%clk 0:00:41]} 56. Rb6+ {[%clk 0:00:03]}  Ka3 {[%clk 0:00:41]} 57. Rb8 {[%clk 0:00:03]}  Ka2 {[%clk 0:00:40]} 58. h4 {[%clk 0:00:04]}  b1=Q {[%clk 0:00:40]} 59. Rxb1 {[%clk 0:00:04]}  Kxb1 {[%clk 0:00:41]} 60. Kf4 {[%clk 0:00:05]}  Kc2 {[%clk 0:00:41]} 61. Kg5 {[%clk 0:00:06]}  Kd3 {[%clk 0:00:41]} 62. Kxg6 {[%clk 0:00:07]}  Ke2 {[%clk 0:00:42]} 63. h5 {[%clk 0:00:08]}  Kxf2 {[%clk 0:00:43]} 64. h6 {[%clk 0:00:09]} 1-0


[Site "https://www.chess.com"]

[Event "Titled Tuesday Blitz February 14 Early 2023"]
[White "Hartikainen, Jarmo"]
[Black "Osuna Vega, Enrique"]
[WhiteFideId "503134"]
[BlackFideId "2219549"]
[WhiteElo "2108"]
[BlackElo "2061"]
[Result "0-1"]
[Round "09"]
[TimeControl "180+2"]
[Date "2023.02.14"]
[WhiteClock "0:00:43"]
[BlackClock "0:00:34"]

1. e4 {[%clk 0:03:00]}  d6 {[%clk 0:01:35]} 2. d4 {[%clk 0:02:58]}  Nf6 {[%clk 0:01:34]} 3. Nc3 {[%clk 0:02:58]}  e5 {[%clk 0:01:34]} 4. Nf3 {[%clk 0:02:57]}  Nbd7 {[%clk 0:01:34]} 5. Bc4 {[%clk 0:02:42]}  Be7 {[%clk 0:01:34]} 6. Bxf7+ {[%clk 0:02:33]}  Kxf7 {[%clk 0:01:33]} 7. Ng5+ {[%clk 0:02:34]}  Kg8 {[%clk 0:01:29]} 8. Ne6 {[%clk 0:02:33]}  Qe8 {[%clk 0:01:30]} 9. Nxc7 {[%clk 0:02:31]}  Qg6 {[%clk 0:01:30]} 10. Nxa8 {[%clk 0:02:26]}  Qxg2 {[%clk 0:01:29]} 11. Rf1 {[%clk 0:02:25]}  exd4 {[%clk 0:01:18]} 12. Qxd4 {[%clk 0:02:09]}  Ne5 {[%clk 0:01:10]} 13. f4 {[%clk 0:01:07]}  Nfg4 {[%clk 0:01:05]} 14. fxe5 {[%clk 0:00:56]}  Bh4+ {[%clk 0:01:01]} 15. Kd1 {[%clk 0:00:42]}  Qxf1+ {[%clk 0:00:56]} 16. Kd2 {[%clk 0:00:43]}  Bg5+ {[%clk 0:00:34]} 0-1


[Site "https://www.chess.com"]

[Event "Titled Tuesday Blitz February 14 Early 2023"]
[White "Tsotsonava, Elene"]
[Black "Michalski, Olaf"]
[WhiteFideId "13615939"]
[BlackFideId "1106740"]
[WhiteElo "2053"]
[BlackElo "2273"]
[Result "1-0"]
[Round "09"]
[TimeControl "180+2"]
[Date "2023.02.14"]
[WhiteClock "0:01:09"]
[BlackClock "0:00:11"]

1. e4 {[%clk 0:02:53]}  c5 {[%clk 0:02:58]} 2. Nf3 {[%clk 0:02:53]}  a6 {[%clk 0:02:58]} 3. c4 {[%clk 0:02:52]}  Nc6 {[%clk 0:02:57]} 4. d4 {[%clk 0:02:52]}  cxd4 {[%clk 0:02:56]} 5. Nxd4 {[%clk 0:02:53]}  Nf6 {[%clk 0:02:55]} 6. Nc3 {[%clk 0:02:53]}  e5 {[%clk 0:02:54]} 7. Nf5 {[%clk 0:02:50]}  d5 {[%clk 0:02:54]} 8. cxd5 {[%clk 0:02:49]}  Bxf5 {[%clk 0:02:52]} 9. exf5 {[%clk 0:02:43]}  Nd4 {[%clk 0:02:52]} 10. Bd3 {[%clk 0:02:35]}  Nxd5 {[%clk 0:02:43]} 11. Be4 {[%clk 0:02:30]}  Nb4 {[%clk 0:02:23]} 12. O-O {[%clk 0:02:24]}  Nbc6 {[%clk 0:01:42]} 13. Nd5 {[%clk 0:02:08]}  Bd6 {[%clk 0:01:28]} 14. Qg4 {[%clk 0:01:56]}  Kf8 {[%clk 0:01:20]} 15. f6 {[%clk 0:01:52]}  g6 {[%clk 0:00:51]} 16. Bh6+ {[%clk 0:01:49]}  Ke8 {[%clk 0:00:51]} 17. f4 {[%clk 0:01:45]}  exf4 {[%clk 0:00:42]} 18. Rae1 {[%clk 0:01:30]}  Ne6 {[%clk 0:00:42]} 19. Bxg6 {[%clk 0:01:12]}  hxg6 {[%clk 0:00:11]} 20. Rxe6+ {[%clk 0:01:11]}  Kd7 {[%clk 0:00:11]} 21. Re7# {[%clk 0:01:09]} 1-0


[Site "https://www.chess.com"]

[Event "Titled Tuesday Blitz February 14 Early 2023"]
[White "Vargas, Mauricio"]
[Black "Thomas, Anysia"]
[WhiteFideId "4404572"]
[BlackFideId "670472"]
[WhiteElo "2035"]
[BlackElo "2147"]
[Result "0-1"]
[Round "09"]
[TimeControl "180+2"]
[Date "2023.02.14"]
[WhiteClock "0:00:06"]
[BlackClock "0:00:44"]

1. e4 {[%clk 0:02:43]}  c5 {[%clk 0:02:59]} 2. Nc3 {[%clk 0:02:43]}  Nc6 {[%clk 0:02:59]} 3. f4 {[%clk 0:02:43]}  g6 {[%clk 0:02:59]} 4. Nf3 {[%clk 0:02:44]}  Bg7 {[%clk 0:03:00]} 5. Bb5 {[%clk 0:02:43]}  Nd4 {[%clk 0:02:59]} 6. Bf1 {[%clk 0:02:44]}  d6 {[%clk 0:02:57]} 7. d3 {[%clk 0:02:43]}  Nf6 {[%clk 0:02:57]} 8. h3 {[%clk 0:02:43]}  O-O {[%clk 0:02:56]} 9. g3 {[%clk 0:02:43]}  d5 {[%clk 0:02:55]} 10. e5 {[%clk 0:02:42]}  Nh5 {[%clk 0:02:52]} 11. g4 {[%clk 0:02:41]}  Ng3 {[%clk 0:02:48]} 12. Rg1 {[%clk 0:02:41]}  Nxf1 {[%clk 0:02:48]} 13. Rxf1 {[%clk 0:02:42]}  f6 {[%clk 0:02:44]} 14. Bd2 {[%clk 0:02:34]}  Nxf3+ {[%clk 0:02:42]} 15. Rxf3 {[%clk 0:02:34]}  fxe5 {[%clk 0:02:42]} 16. fxe5 {[%clk 0:02:29]}  Bxe5 {[%clk 0:02:42]} 17. Qe2 {[%clk 0:02:25]}  Rxf3 {[%clk 0:02:23]} 18. Qxf3 {[%clk 0:02:24]}  Be6 {[%clk 0:02:20]} 19. O-O-O {[%clk 0:02:22]}  Qd7 {[%clk 0:02:19]} 20. Bh6 {[%clk 0:02:20]}  Bg7 {[%clk 0:02:03]} 21. Bg5 {[%clk 0:02:15]}  Rf8 {[%clk 0:02:01]} 22. Qg3 {[%clk 0:02:08]}  b5 {[%clk 0:01:56]} 23. Re1 {[%clk 0:02:07]}  b4 {[%clk 0:01:56]} 24. Nb1 {[%clk 0:02:00]}  c4 {[%clk 0:01:50]} 25. Qe3 {[%clk 0:01:53]}  Bf7 {[%clk 0:01:37]} 26. dxc4 {[%clk 0:01:42]}  dxc4 {[%clk 0:01:36]} 27. Qc5 {[%clk 0:01:36]}  b3 {[%clk 0:01:27]} 28. axb3 {[%clk 0:01:32]}  cxb3 {[%clk 0:01:25]} 29. Nc3 {[%clk 0:01:24]}  bxc2 {[%clk 0:01:23]} 30. Kxc2 {[%clk 0:01:20]}  Qb7 {[%clk 0:01:21]} 31. Qa3 {[%clk 0:01:04]}  Rc8 {[%clk 0:01:09]} 32. Rxe7 {[%clk 0:01:00]}  Qg2+ {[%clk 0:01:08]} 33. Kb1 {[%clk 0:00:54]}  Qf1+ {[%clk 0:01:00]} 34. Bc1 {[%clk 0:00:49]}  Qd3+ {[%clk 0:00:58]} 35. Ka1 {[%clk 0:00:44]}  Qc2 {[%clk 0:00:54]} 36. Re1 {[%clk 0:00:18]}  Bb3 {[%clk 0:00:47]} 37. Qxa7 {[%clk 0:00:16]}  Bxc3 {[%clk 0:00:45]} 38. Re8+ {[%clk 0:00:06]}  Rxe8 {[%clk 0:00:44]} 0-1


[Site "https://www.chess.com"]

[Event "Titled Tuesday Blitz February 14 Early 2023"]
[White "Thorsteinsdottir, Hallgerdur"]
[Black "Mohammadian, Mohammad"]
[WhiteFideId "2302454"]
[BlackFideId "12566055"]
[WhiteElo "1978"]
[BlackElo "1398"]
[Result "1-0"]
[Round "09"]
[TimeControl "180+2"]
[Date "2023.02.14"]
[WhiteClock "0:00:40"]
[BlackClock "0:00:04"]

1. d4 {[%clk 0:03:00]}  Nf6 {[%clk 0:02:58]} 2. c4 {[%clk 0:03:00]}  g6 {[%clk 0:02:57]} 3. Nc3 {[%clk 0:02:59]}  d5 {[%clk 0:02:57]} 4. cxd5 {[%clk 0:02:45]}  Nxd5 {[%clk 0:02:56]} 5. Bd2 {[%clk 0:02:41]}  Nxc3 {[%clk 0:02:56]} 6. Bxc3 {[%clk 0:02:39]}  Bg7 {[%clk 0:02:55]} 7. h3 {[%clk 0:02:28]}  O-O {[%clk 0:02:54]} 8. Nf3 {[%clk 0:02:27]}  Nc6 {[%clk 0:02:53]} 9. e4 {[%clk 0:02:21]}  e6 {[%clk 0:02:47]} 10. Bb5 {[%clk 0:02:09]}  Bd7 {[%clk 0:02:45]} 11. O-O {[%clk 0:02:06]}  a6 {[%clk 0:02:43]} 12. Bd3 {[%clk 0:02:02]}  b5 {[%clk 0:02:38]} 13. a3 {[%clk 0:02:02]}  Ne7 {[%clk 0:02:33]} 14. Qe2 {[%clk 0:01:52]}  Bc6 {[%clk 0:02:29]} 15. Rfd1 {[%clk 0:01:52]}  Bb7 {[%clk 0:02:24]} 16. Rac1 {[%clk 0:01:51]}  c6 {[%clk 0:02:16]} 17. Bb4 {[%clk 0:01:50]}  Re8 {[%clk 0:02:15]} 18. Bb1 {[%clk 0:01:46]}  Qd7 {[%clk 0:01:50]} 19. Qe3 {[%clk 0:01:11]}  a5 {[%clk 0:01:49]} 20. Bc5 {[%clk 0:01:02]}  a4 {[%clk 0:01:44]} 21. Ne1 {[%clk 0:01:02]}  Qc7 {[%clk 0:01:33]} 22. Nc2 {[%clk 0:01:01]}  h5 {[%clk 0:01:22]} 23. Nb4 {[%clk 0:01:00]}  Kh7 {[%clk 0:01:03]} 24. Qe2 {[%clk 0:00:57]}  Bh6 {[%clk 0:01:00]} 25. Rc3 {[%clk 0:00:56]}  Bf4 {[%clk 0:00:41]} 26. d5 {[%clk 0:00:52]}  exd5 {[%clk 0:00:40]} 27. exd5 {[%clk 0:00:52]}  Nxd5 {[%clk 0:00:38]} 28. Nxd5 {[%clk 0:00:47]}  cxd5 {[%clk 0:00:32]} 29. Qxh5+ {[%clk 0:00:44]}  Bh6 {[%clk 0:00:25]} 30. Be3 {[%clk 0:00:43]}  Rxe3 {[%clk 0:00:22]} 31. Rxc7 {[%clk 0:00:42]}  Re4 {[%clk 0:00:04]} 32. Rxf7+ {[%clk 0:00:40]} 1-0


[Site "https://www.chess.com"]

[Event "Titled Tuesday Blitz February 14 Early 2023"]
[White "Floresvillar Gonzalez, Luis Migu"]
[Black "Caspi, Israel"]
[WhiteFideId "5100542"]
[BlackFideId "2807394"]
[WhiteElo "2043"]
[BlackElo "2466"]
[Result "0-1"]
[Round "09"]
[TimeControl "180+2"]
[Date "2023.02.14"]
[WhiteClock "0:00:01"]
[BlackClock "0:01:16"]

1. d4 {[%clk 0:03:00]}  f5 {[%clk 0:02:58]} 2. Nc3 {[%clk 0:02:58]}  Nf6 {[%clk 0:02:57]} 3. e4 {[%clk 0:02:58]}  fxe4 {[%clk 0:02:57]} 4. Bg5 {[%clk 0:02:58]}  Nc6 {[%clk 0:02:55]} 5. Bxf6 {[%clk 0:02:55]}  exf6 {[%clk 0:02:54]} 6. d5 {[%clk 0:02:49]}  Ne5 {[%clk 0:02:53]} 7. Nxe4 {[%clk 0:02:45]}  f5 {[%clk 0:02:34]} 8. Nd2 {[%clk 0:02:27]}  Qe7 {[%clk 0:02:19]} 9. Qe2 {[%clk 0:02:24]}  Ng4 {[%clk 0:02:17]} 10. Ngf3 {[%clk 0:02:10]}  Qxe2+ {[%clk 0:02:14]} 11. Bxe2 {[%clk 0:02:10]}  Bc5 {[%clk 0:02:15]} 12. O-O {[%clk 0:02:06]}  O-O {[%clk 0:02:15]} 13. h3 {[%clk 0:02:05]}  Nf6 {[%clk 0:02:14]} 14. c4 {[%clk 0:02:04]}  a5 {[%clk 0:02:13]} 15. Nb3 {[%clk 0:02:01]}  Be7 {[%clk 0:02:08]} 16. Nbd4 {[%clk 0:01:59]}  g6 {[%clk 0:02:07]} 17. Rfe1 {[%clk 0:01:52]}  Bb4 {[%clk 0:02:06]} 18. Rf1 {[%clk 0:01:43]}  a4 {[%clk 0:02:06]} 19. a3 {[%clk 0:01:43]}  Bc5 {[%clk 0:02:06]} 20. Rad1 {[%clk 0:01:39]}  Re8 {[%clk 0:02:05]} 21. Rfe1 {[%clk 0:01:31]}  d6 {[%clk 0:02:05]} 22. Bd3 {[%clk 0:01:24]}  Bd7 {[%clk 0:02:04]} 23. Ne6 {[%clk 0:01:18]}  Bb6 {[%clk 0:02:02]} 24. Nfd4 {[%clk 0:01:07]}  Re7 {[%clk 0:01:58]} 25. Bc2 {[%clk 0:00:48]}  Rae8 {[%clk 0:01:57]} 26. Kf1 {[%clk 0:00:44]}  h6 {[%clk 0:01:53]} 27. Re2 {[%clk 0:00:15]}  Kf7 {[%clk 0:01:50]} 28. Rde1 {[%clk 0:00:15]}  Bxd4 {[%clk 0:01:38]} 29. Nxd4 {[%clk 0:00:14]}  Rxe2 {[%clk 0:01:34]} 30. Rxe2 {[%clk 0:00:14]}  Ra8 {[%clk 0:01:34]} 31. f4 {[%clk 0:00:11]}  Ra6 {[%clk 0:01:30]} 32. Kf2 {[%clk 0:00:08]}  Rb6 {[%clk 0:01:30]} 33. Bd3 {[%clk 0:00:08]}  c6 {[%clk 0:01:23]} 34. dxc6 {[%clk 0:00:06]}  bxc6 {[%clk 0:01:22]} 35. Kf3 {[%clk 0:00:06]}  c5 {[%clk 0:01:21]} 36. Nb5 {[%clk 0:00:05]}  Bc6+ {[%clk 0:01:19]} 37. Kf2 {[%clk 0:00:04]}  Bxb5 {[%clk 0:01:19]} 38. cxb5 {[%clk 0:00:03]}  d5 {[%clk 0:01:20]} 39. Bc2 {[%clk 0:00:01]}  Ne4+ {[%clk 0:01:16]} 0-1


[Site "https://www.chess.com"]

[Event "Titled Tuesday Blitz February 14 Early 2023"]
[White "Lee, Addison"]
[Black "Yaniuk, Volodymyr"]
[WhiteFideId "30924570"]
[BlackFideId "14133083"]
[WhiteElo "2079"]
[BlackElo "2223"]
[Result "0-1"]
[Round "09"]
[TimeControl "180+2"]
[Date "2023.02.14"]
[WhiteClock "0:00:06"]
[BlackClock "0:00:04"]

1. Nf3 {[%clk 0:03:00]}  d5 {[%clk 0:02:59]} 2. d4 {[%clk 0:02:50]}  Nf6 {[%clk 0:02:56]} 3. Bf4 {[%clk 0:02:48]}  c5 {[%clk 0:02:53]} 4. e3 {[%clk 0:02:49]}  Qb6 {[%clk 0:02:51]} 5. Qc1 {[%clk 0:02:47]}  Nc6 {[%clk 0:02:49]} 6. Nbd2 {[%clk 0:02:45]}  Bf5 {[%clk 0:02:46]} 7. c3 {[%clk 0:02:42]}  Rc8 {[%clk 0:02:46]} 8. dxc5 {[%clk 0:02:39]}  Qxc5 {[%clk 0:02:45]} 9. Be2 {[%clk 0:02:38]}  h6 {[%clk 0:02:44]} 10. O-O {[%clk 0:02:36]}  Nh5 {[%clk 0:02:44]} 11. Bg3 {[%clk 0:02:19]}  Nxg3 {[%clk 0:02:42]} 12. hxg3 {[%clk 0:02:20]}  e6 {[%clk 0:02:33]} 13. Nb3 {[%clk 0:02:12]}  Qb6 {[%clk 0:02:30]} 14. Qd2 {[%clk 0:02:13]}  Be7 {[%clk 0:02:29]} 15. Nbd4 {[%clk 0:02:08]}  Bg6 {[%clk 0:02:23]} 16. Bd3 {[%clk 0:02:05]}  Bh5 {[%clk 0:02:12]} 17. Rfe1 {[%clk 0:02:00]}  O-O {[%clk 0:01:34]} 18. Nxc6 {[%clk 0:01:44]}  bxc6 {[%clk 0:01:30]} 19. e4 {[%clk 0:01:28]}  Rfd8 {[%clk 0:01:22]} 20. Qc2 {[%clk 0:01:11]}  Rb8 {[%clk 0:01:01]} 21. Rab1 {[%clk 0:01:09]}  Bc5 {[%clk 0:00:56]} 22. Ne5 {[%clk 0:01:02]}  f6 {[%clk 0:00:52]} 23. Nf3 {[%clk 0:01:00]}  e5 {[%clk 0:00:44]} 24. a4 {[%clk 0:00:56]}  a5 {[%clk 0:00:42]} 25. Nh4 {[%clk 0:00:52]}  Bf7 {[%clk 0:00:42]} 26. Nf5 {[%clk 0:00:49]}  Rb7 {[%clk 0:00:33]} 27. Qe2 {[%clk 0:00:49]}  Qb3 {[%clk 0:00:28]} 28. Bc2 {[%clk 0:00:41]}  Qc4 {[%clk 0:00:24]} 29. Qg4 {[%clk 0:00:36]}  Be8 {[%clk 0:00:19]} 30. Nxh6+ {[%clk 0:00:35]}  Kf8 {[%clk 0:00:19]} 31. Nf5 {[%clk 0:00:30]}  dxe4 {[%clk 0:00:14]} 32. Bxe4 {[%clk 0:00:26]}  Rd2 {[%clk 0:00:13]} 33. Qh4 {[%clk 0:00:20]}  Rxf2 {[%clk 0:00:09]} 34. Qh8+ {[%clk 0:00:19]}  Qg8 {[%clk 0:00:09]} 35. Qxg8+ {[%clk 0:00:18]}  Kxg8 {[%clk 0:00:10]} 36. Ne3 {[%clk 0:00:18]}  Rfxb2 {[%clk 0:00:07]} 37. Rxb2 {[%clk 0:00:16]}  Rxb2 {[%clk 0:00:08]} 38. Kh2 {[%clk 0:00:16]}  Kf8 {[%clk 0:00:08]} 39. Nc4 {[%clk 0:00:14]}  Ra2 {[%clk 0:00:06]} 40. Nxa5 {[%clk 0:00:14]}  Rxa4 {[%clk 0:00:06]} 41. Nb7 {[%clk 0:00:12]}  Be7 {[%clk 0:00:05]} 42. Rb1 {[%clk 0:00:10]}  Rc4 {[%clk 0:00:05]} 43. Bf3 {[%clk 0:00:08]}  Rxc3 {[%clk 0:00:05]} 44. Na5 {[%clk 0:00:08]}  c5 {[%clk 0:00:04]} 45. Rb8 {[%clk 0:00:07]}  Kf7 {[%clk 0:00:03]} 46. Bh5+ {[%clk 0:00:06]}  g6 {[%clk 0:00:03]} 47. Bxg6+ {[%clk 0:00:07]}  Kxg6 {[%clk 0:00:04]} 48. Rxe8 {[%clk 0:00:08]}  Kf7 {[%clk 0:00:05]} 49. Rc8 {[%clk 0:00:07]}  Rc2 {[%clk 0:00:04]} 50. Rc7 {[%clk 0:00:06]}  Ke6 {[%clk 0:00:05]} 51. Rc6+ {[%clk 0:00:06]}  Kd7 {[%clk 0:00:03]} 52. Ra6 {[%clk 0:00:06]}  Bd6 {[%clk 0:00:04]} 53. Ra7+ {[%clk 0:00:06]}  Bc7 {[%clk 0:00:04]} 0-1


[Site "https://www.chess.com"]

[Event "Titled Tuesday Blitz February 14 Early 2023"]
[White "Nakamura, Hikaru"]
[Black "Indjic, Aleksandar"]
[WhiteFideId "2016192"]
[BlackFideId "911925"]
[WhiteElo "2775"]
[BlackElo "2618"]
[Result "1-0"]
[Round "10"]
[TimeControl "180+2"]
[Date "2023.02.14"]
[WhiteClock "0:00:16"]
[BlackClock "0:00:19"]

1. e4 {[%clk 0:03:00]}  c5 {[%clk 0:02:59]} 2. Nf3 {[%clk 0:03:00]}  d6 {[%clk 0:02:59]} 3. c3 {[%clk 0:03:01]}  Nf6 {[%clk 0:02:58]} 4. h3 {[%clk 0:03:01]}  g6 {[%clk 0:02:54]} 5. Bd3 {[%clk 0:03:01]}  Bg7 {[%clk 0:02:54]} 6. Bc2 {[%clk 0:03:02]}  e5 {[%clk 0:02:53]} 7. d3 {[%clk 0:03:01]}  O-O {[%clk 0:02:53]} 8. O-O {[%clk 0:03:00]}  Nc6 {[%clk 0:02:53]} 9. a3 {[%clk 0:03:01]}  h6 {[%clk 0:02:52]} 10. b4 {[%clk 0:03:01]}  b6 {[%clk 0:02:52]} 11. Nbd2 {[%clk 0:02:59]}  Bb7 {[%clk 0:02:46]} 12. Re1 {[%clk 0:02:59]}  Re8 {[%clk 0:02:33]} 13. Bb2 {[%clk 0:02:57]}  b5 {[%clk 0:02:29]} 14. Nf1 {[%clk 0:02:25]}  a6 {[%clk 0:02:12]} 15. Ne3 {[%clk 0:02:23]}  Nb8 {[%clk 0:02:10]} 16. bxc5 {[%clk 0:02:09]}  dxc5 {[%clk 0:02:09]} 17. c4 {[%clk 0:02:10]}  Nc6 {[%clk 0:02:06]} 18. Nd5 {[%clk 0:02:04]}  Nd7 {[%clk 0:02:06]} 19. Bb3 {[%clk 0:01:52]}  Rb8 {[%clk 0:02:05]} 20. cxb5 {[%clk 0:01:46]}  axb5 {[%clk 0:02:04]} 21. a4 {[%clk 0:01:47]}  b4 {[%clk 0:02:03]} 22. Rc1 {[%clk 0:01:41]}  Na5 {[%clk 0:02:02]} 23. Nd2 {[%clk 0:01:37]}  Rc8 {[%clk 0:01:52]} 24. Nc4 {[%clk 0:01:32]}  Nxc4 {[%clk 0:01:39]} 25. Bxc4 {[%clk 0:01:28]}  Nb6 {[%clk 0:01:38]} 26. Nxb6 {[%clk 0:01:27]}  Qxb6 {[%clk 0:01:39]} 27. Qb3 {[%clk 0:01:18]}  Re7 {[%clk 0:01:39]} 28. Rc2 {[%clk 0:01:16]}  Bc6 {[%clk 0:01:23]} 29. Ra1 {[%clk 0:01:09]}  Qa5 {[%clk 0:01:22]} 30. Bc1 {[%clk 0:01:09]}  Be8 {[%clk 0:01:21]} 31. Be3 {[%clk 0:01:07]}  Ra7 {[%clk 0:01:21]} 32. Rca2 {[%clk 0:01:07]}  Bf8 {[%clk 0:01:21]} 33. Qc2 {[%clk 0:00:53]}  Kh7 {[%clk 0:01:11]} 34. Bb3 {[%clk 0:00:51]}  Rca8 {[%clk 0:01:01]} 35. Rf1 {[%clk 0:00:50]}  g5 {[%clk 0:00:53]} 36. Rc1 {[%clk 0:00:47]}  Rc8 {[%clk 0:00:49]} 37. Qd1 {[%clk 0:00:46]}  Qd8 {[%clk 0:00:48]} 38. Rca1 {[%clk 0:00:35]}  Ra5 {[%clk 0:00:46]} 39. Bc4 {[%clk 0:00:36]}  Kg7 {[%clk 0:00:45]} 40. h4 {[%clk 0:00:33]}  Be7 {[%clk 0:00:41]} 41. hxg5 {[%clk 0:00:32]}  hxg5 {[%clk 0:00:38]} 42. g3 {[%clk 0:00:31]}  Qd6 {[%clk 0:00:36]} 43. Kg2 {[%clk 0:00:31]}  Qg6 {[%clk 0:00:36]} 44. Qg4 {[%clk 0:00:30]}  Rd8 {[%clk 0:00:36]} 45. Bb3 {[%clk 0:00:20]}  Bd7 {[%clk 0:00:34]} 46. Qd1 {[%clk 0:00:20]}  Rh8 {[%clk 0:00:33]} 47. g4 {[%clk 0:00:19]}  Qh6 {[%clk 0:00:31]} 48. Qf3 {[%clk 0:00:20]}  Qh2+ {[%clk 0:00:30]} 49. Kf1 {[%clk 0:00:20]}  Ra6 {[%clk 0:00:28]} 50. Qxf7+ {[%clk 0:00:19]}  Kh6 {[%clk 0:00:24]} 51. Qxe7 {[%clk 0:00:20]}  Qh1+ {[%clk 0:00:19]} 52. Ke2 {[%clk 0:00:20]}  Bxg4+ {[%clk 0:00:19]} 53. Kd2 {[%clk 0:00:21]}  Qf3 {[%clk 0:00:18]} 54. Qxg5+ {[%clk 0:00:20]}  Kh7 {[%clk 0:00:19]} 55. Bd1 {[%clk 0:00:16]} 1-0


[Site "https://www.chess.com"]

[Event "Titled Tuesday Blitz February 14 Early 2023"]
[White "Ter-Sahakyan, Samvel"]
[Black "Andreikin, Dmitry"]
[WhiteFideId "13302531"]
[BlackFideId "4158814"]
[WhiteElo "2617"]
[BlackElo "2729"]
[Result "1/2-1/2"]
[Round "10"]
[TimeControl "180+2"]
[Date "2023.02.14"]
[WhiteClock "0:01:36"]
[BlackClock "0:01:56"]

1. d4 {[%clk 0:03:00]}  d5 {[%clk 0:02:51]} 2. c4 {[%clk 0:03:00]}  e6 {[%clk 0:02:52]} 3. Nf3 {[%clk 0:03:00]}  Nf6 {[%clk 0:02:49]} 4. Nc3 {[%clk 0:03:00]}  a6 {[%clk 0:02:48]} 5. cxd5 {[%clk 0:02:54]}  exd5 {[%clk 0:02:48]} 6. Bg5 {[%clk 0:02:53]}  Be6 {[%clk 0:02:48]} 7. e3 {[%clk 0:02:47]}  Nbd7 {[%clk 0:02:48]} 8. Bd3 {[%clk 0:02:46]}  h6 {[%clk 0:02:49]} 9. Bh4 {[%clk 0:02:45]}  Bd6 {[%clk 0:02:45]} 10. Bg3 {[%clk 0:02:33]}  Bxg3 {[%clk 0:02:44]} 11. hxg3 {[%clk 0:02:34]}  Rc8 {[%clk 0:02:43]} 12. Rc1 {[%clk 0:02:23]}  O-O {[%clk 0:02:41]} 13. Bb1 {[%clk 0:02:13]}  Re8 {[%clk 0:02:36]} 14. O-O {[%clk 0:01:56]}  c6 {[%clk 0:02:36]} 15. Qb3 {[%clk 0:01:44]}  Qc7 {[%clk 0:02:31]} 16. Ne2 {[%clk 0:01:41]}  Bg4 {[%clk 0:02:25]} 17. Nf4 {[%clk 0:01:39]}  Qb8 {[%clk 0:02:24]} 18. Nh2 {[%clk 0:01:36]}  Be6 {[%clk 0:02:19]} 19. Nf3 {[%clk 0:01:36]}  Bg4 {[%clk 0:02:08]} 20. Nh2 {[%clk 0:01:36]}  Be6 {[%clk 0:02:07]} 21. Nf3 {[%clk 0:01:36]}  Bg4 {[%clk 0:01:56]} 1/2-1/2


[Site "https://www.chess.com"]